bitfinex/quotes_BTCUSD_20260127
["timestamp","ask_amount","ask_price","bid_price","bid_amount"]
[1769520696404,0.01281207,87913.0,87900.0,0.03734975]
[1769520696607,0.0001568,87921.0,87897.0,0.11688]
[1769520696608,0.05688023,87904.0,87897.0,0.11688]
[1769520697245,0.08074622,87904.0,87897.0,0.11688]
[1769520697449,0.08074622,87904.0,87890.0,0.28405473]
[1769520697450,0.02386599,87900.0,87890.0,0.38955688]
[1769520697654,0.02386599,87900.0,87888.0,0.0001568]
[1769520697655,0.44692279,87897.0,87888.0,0.1170368]
[1769520697878,0.02386599,87896.0,87889.0,0.01511728]
[1769520698078,0.4427458,87902.0,87889.0,0.01511728]
[1769520698308,0.05688023,87904.0,87889.0,0.01511728]
[1769520698309,0.4427458,87900.0,87889.0,0.01511728]
[1769520698474,0.4427458,87899.0,87889.0,0.01511728]
[1769520698671,0.46770121,87899.0,87889.0,0.01511728]
[1769520698959,0.02495541,87899.0,87889.0,0.01511728]
[1769520705243,0.02495541,87899.0,87888.0,0.0001568]
[1769520705472,0.02495541,87899.0,87889.0,0.27267688]
[1769520705674,0.49962603,87904.0,87890.0,0.01137785]
[1769520706112,0.49962603,87904.0,87891.0,0.06826633]
[1769520706264,0.49962603,87904.0,87891.0,0.01137772]
[1769520706465,0.49962603,87904.0,87890.0,0.06826676]
[1769520707169,0.49962603,87904.0,87890.0,0.06826707]
[1769520707378,0.49962603,87904.0,87891.0,0.05688822]
[1769520707582,0.05688023,87904.0,87891.0,0.01137772]
[1769520707954,0.05688023,87904.0,87892.0,0.01137759]
[1769520708129,0.05688023,87904.0,87893.0,0.01137747]
[1769520708661,0.05688023,87904.0,87892.0,0.06826524]
[1769520708883,0.05688023,87904.0,87893.0,0.01137747]
[1769520709512,0.05688023,87904.0,87893.0,0.06826477]
[1769520709870,0.05688023,87904.0,87893.0,0.01137747]
[1769520710277,0.05688023,87904.0,87894.0,0.01137734]
[1769520711277,0.05688023,87904.0,87895.0,0.47887385]
[1769520712334,0.05688023,87904.0,87895.0,0.02373922]
[1769520713106,0.05688023,87904.0,87895.0,0.47887385]
[1769520713309,0.05688023,87904.0,87895.0,0.49025106]
[1769520713575,0.05688023,87904.0,87895.0,0.47887385]
[1769520717015,0.05688023,87904.0,87895.0,0.59047663]
[1769520718207,0.05688023,87904.0,87895.0,0.135342]
[1769520718413,0.05688023,87904.0,87895.0,0.02373922]
[1769520719197,0.05688023,87904.0,87890.0,0.73587062]
[1769520721007,0.05688023,87904.0,87890.0,0.74724847]
[1769520721451,0.05688023,87904.0,87891.0,0.01137772]
[1769520721658,0.05688023,87904.0,87890.0,0.80413768]
[1769520721836,0.05688023,87904.0,87891.0,0.11160278]
[1769520722035,0.05688023,87904.0,87891.0,0.17986911]
[1769520722439,0.05688023,87904.0,87892.0,0.01137759]
[1769520722686,0.05688023,87904.0,87891.0,0.17986911]
[1769520722891,0.05688023,87904.0,87892.0,0.01137759]
[1769520723091,0.05688023,87904.0,87893.0,0.01693901]
[1769520723532,0.05688023,87904.0,87893.0,0.02831648]
[1769520723731,0.05688023,87904.0,87893.0,0.01693901]
[1769520724156,0.05688023,87904.0,87893.0,0.02831648]
[1769520724538,0.05688023,87904.0,87893.0,0.08520372]
[1769520724717,0.05688023,87904.0,87894.0,0.01137734]
[1769520725123,0.05688023,87904.0,87893.0,0.02831648]
[1769520725323,0.05688023,87904.0,87893.0,0.01137747]
[1769520726025,0.05688023,87904.0,87890.0,0.74724847]
[1769520726359,0.05688023,87904.0,87890.0,0.73587062]
[1769520726552,0.05688023,87904.0,87891.0,0.01137772]
[1769520726715,0.05688023,87904.0,87890.0,0.80413751]
[1769520726914,0.05688023,87904.0,87891.0,0.01137772]
[1769520727265,0.05688023,87904.0,87890.0,0.8395314]
[1769520728184,0.4349946,87903.0,87890.0,0.10366078]
[1769520728337,0.02328344,87902.0,87888.0,0.0001568]
[1769520728547,0.4349946,87901.0,87888.0,0.0001568]
[1769520729493,0.4349946,87901.0,87890.0,0.27225567]
[1769520730400,0.4349946,87901.0,87890.0,0.27241357]
[1769520731157,0.4349946,87901.0,87890.0,0.0001579]
[1769520731611,0.4349946,87901.0,87891.0,0.01838651]
[1769520732185,0.05688023,87904.0,87891.0,0.01838651]
[1769520733188,0.05688023,87904.0,87891.0,0.02976423]
[1769520733404,0.05688023,87904.0,87892.0,0.01137759]
[1769520733614,0.05688023,87904.0,87891.0,0.01838651]
[1769520734654,0.05688023,87904.0,87891.0,0.02976423]
[1769520734922,0.05688023,87904.0,87891.0,0.01838651]
[1769520735235,0.02328344,87907.0,87892.0,0.11015528]
[1769520735372,0.05688156,87902.0,87892.0,0.11015528]
[1769520736454,0.02328344,87907.0,87892.0,0.11015528]
[1769520736656,0.05688153,87902.0,87892.0,0.11015528]
[1769520738962,0.05688153,87902.0,87890.0,0.28379142]
[1769520739169,0.05688153,87902.0,87890.0,0.27241357]
[1769520739381,0.05688153,87902.0,87890.0,0.28379142]
[1769520739713,0.05688153,87902.0,87891.0,0.01137772]
[1769520740409,0.05688153,87902.0,87891.0,0.06826622]
[1769520740684,0.05688153,87902.0,87892.0,0.01137759]
[1769520740895,0.05688153,87902.0,87891.0,0.01137772]
[1769520741108,0.05688153,87902.0,87892.0,0.01137759]
[1769520741802,0.05688153,87902.0,87893.0,0.05688716]
[1769520742030,0.05688153,87902.0,87892.0,0.01137759]
[1769520742222,0.05688153,87902.0,87893.0,0.01137747]
[1769520742469,0.05688153,87902.0,87891.0,0.01137772]
[1769520742656,0.05688153,87902.0,87892.0,0.08514613]
[1769520742882,0.05688153,87902.0,87890.0,0.28379142]
[1769520743082,0.05688153,87902.0,87891.0,0.01137772]
[1769520743332,0.05688153,87902.0,87890.0,0.28379142]
[1769520744279,0.05688153,87902.0,87891.0,0.01137772]
[1769520744582,0.05688153,87902.0,87890.0,0.34068059]
[1769520744799,0.05688153,87902.0,87891.0,0.09083513]
[1769520745603,0.05688153,87902.0,87891.0,0.15910141]
[1769520745781,0.05688153,87902.0,87893.0,0.01137747]
[1769520746075,0.05688153,87902.0,87894.0,0.01137734]
[1769520746274,0.0908223,87926.0,87897.0,0.44142782]
[1769520746474,0.27240277,87930.0,87897.0,0.44142782]
[1769520746475,0.46721373,87919.0,87900.0,0.27225567]
[1769520746710,0.01814264,87921.0,87900.0,0.27225567]
[1769520746711,0.46721373,87917.0,87900.0,0.27225567]
[1769520746910,0.46721373,87917.0,87898.0,0.071983]
[1769520746911,0.0001363,87921.0,87909.0,0.27225567]
[1769520746912,0.04007661,87910.0,87909.0,0.27225567]
[1769520747029,0.00161916,87910.0,87904.0,0.02289952]
[1769520747228,0.01881291,87920.0,87904.0,0.02289952]
[1769520747462,0.05687635,87910.0,87905.0,0.09083513]
[1769520750151,0.05687635,87910.0,87904.0,0.02289952]
[1769520750768,0.05687635,87910.0,87900.0,0.27225567]
[1769520751783,0.05687635,87910.0,87902.0,0.03427582]
[1769520752491,0.05687635,87910.0,87903.0,0.06825679]
[1769520753117,0.05687635,87910.0,87903.0,0.01137617]
[1769520753319,0.05687635,87910.0,87904.0,0.01137604]
[1769520753513,0.05687635,87910.0,87904.0,0.09527302]
[1769520753822,0.05687635,87910.0,87904.0,0.08389698]
[1769520762572,0.05687635,87910.0,87907.0,0.02289952]
[1769520763957,0.05687635,87910.0,87906.0,0.44142782]
[1769520764177,0.05687635,87910.0,87902.0,0.09115713]
[1769520764587,0.05687635,87910.0,87902.0,0.47570364]
[1769520764794,0.05687635,87910.0,87902.0,0.53258493]
[1769520765270,0.05687635,87910.0,87902.0,0.5325847]
[1769520765474,0.05687635,87910.0,87903.0,0.15784215]
[1769520765677,0.05687635,87910.0,87903.0,0.10096134]
[1769520765878,0.05687635,87910.0,87903.0,0.15784173]
[1769520766302,0.01814264,87921.0,87903.0,0.15784173]
[1769520766303,0.0001363,87921.0,87910.0,0.45142782]
[1769520766466,0.0001363,87921.0,87911.0,0.29515519]
[1769520766670,0.05700567,87921.0,87912.0,0.03895662]
[1769520767792,0.05700567,87921.0,87912.0,0.48038444]
[1769520767992,0.05700567,87921.0,87913.0,0.02289952]
[1769520768219,0.05700567,87921.0,87913.0,0.46432734]
[1769520770846,0.05700567,87921.0,87913.0,0.47570222]
[1769520771054,0.05700567,87921.0,87914.0,0.08958517]
[1769520771258,0.05700567,87921.0,87914.0,0.10095992]
[1769520771471,0.05700567,87921.0,87914.0,0.1578334]
[1769520771683,0.05700567,87921.0,87915.0,0.01137462]
[1769520772392,0.01780567,87921.0,87917.0,0.01137436]
[1769520772618,0.60398216,87931.0,87918.0,0.03895662]
[1769520772823,0.04006923,87921.0,87918.0,0.03895662]
[1769520773026,0.00161731,87921.0,87918.0,0.03895662]
[1769520773233,0.59834154,87931.0,87919.0,0.06511533]
[1769520773443,0.02331401,87921.0,87919.0,0.06511533]
[1769520773651,0.01523591,87921.0,87919.0,0.06511533]
[1769520776833,0.01472636,87921.0,87919.0,0.06511533]
[1769520777039,0.00872636,87921.0,87919.0,0.06511533]
[1769520777247,0.00872636,87921.0,87919.0,0.43912095]
[1769520778045,0.00872636,87921.0,87920.0,0.02289049]
[1769520778365,0.00872636,87921.0,87920.0,0.46201144]
[1769520779380,0.00872636,87921.0,87919.0,0.0568704]
[1769520779581,0.4709138,87935.0,87920.0,0.01137397]
[1769520779864,0.05686523,87927.0,87921.0,0.06033354]
[1769520781866,0.05686523,87927.0,87921.0,0.07170738]
[1769520782093,0.05686523,87927.0,87922.0,0.01137371]
[1769520782245,0.05686523,87927.0,87922.0,0.43912095]
[1769520782451,0.05686523,87927.0,87923.0,0.00074634]
[1769520782786,0.05686523,87927.0,87924.0,0.02925163]
[1769520782988,0.05686523,87927.0,87925.0,0.00074632]
[1769520783658,0.05686523,87927.0,87924.0,0.02925163]
[1769520789263,0.05686523,87927.0,87925.0,0.00074631]
[1769520789900,0.01230523,87927.0,87925.0,0.00074631]
[1769520790089,0.01230523,87927.0,87926.0,0.03895662]
[1769520790774,0.01230523,87927.0,87924.0,0.02925163]
[1769520790983,0.01,87926.0,87924.0,0.02925163]
[1769520791202,0.01230523,87927.0,87924.0,0.02925163]
[1769520793420,0.01230523,87927.0,87917.0,0.27212303]
[1769520793672,0.01230523,87927.0,87913.0,0.01137488]
[1769520793673,0.01230523,87927.0,87912.0,0.01137501]
[1769520793878,0.01230523,87927.0,87908.0,0.0001471]
[1769520793879,0.4709138,87925.0,87908.0,0.0001471]
[1769520794085,0.01230523,87927.0,87908.0,0.0001471]
[1769520794086,0.02354802,87922.0,87908.0,0.0001471]
[1769520794252,0.01230523,87927.0,87908.0,0.0001471]
[1769520794253,0.02354802,87920.0,87910.0,0.27212303]
[1769520794401,0.02354802,87920.0,87911.0,0.04201554]
[1769520795735,0.30518596,87921.0,87911.0,0.04201554]
[1769520796740,0.02354802,87925.0,87911.0,0.05339068]
[1769520796945,0.02354802,87925.0,87912.0,0.01137501]
[1769520797183,0.02354802,87925.0,87911.0,0.05339068]
[1769520797387,0.01230523,87927.0,87911.0,0.05339068]
[1769520797388,0.01230523,87927.0,87916.0,0.01137449]
[1769520797558,0.01230523,87927.0,87915.0,0.28349765]
[1769520798087,0.01230523,87927.0,87916.0,0.01137449]
[1769520798448,0.01230523,87927.0,87918.0,0.01137423]
[1769520799634,0.01230523,87927.0,87917.0,0.0682458]
[1769520799849,0.01230523,87927.0,87918.0,0.04201554]
[1769520808591,0.01230523,87927.0,87919.0,0.0113741]
[1769520808803,0.01230523,87927.0,87919.0,0.06824416]
[1769520808965,0.01230523,87927.0,87920.0,0.01137397]
[1769520809177,0.01230523,87927.0,87921.0,0.01137384]
[1769520809361,0.01230523,87927.0,87922.0,0.018318]
[1769520810155,0.01230523,87927.0,87923.0,0.0225907]
[1769520810871,0.01230523,87927.0,87922.0,0.018318]
[1769520812142,0.01230523,87927.0,87918.0,0.0225907]
[1769520814657,0.01230523,87927.0,87918.0,0.09083597]
[1769520814855,0.01230523,87927.0,87919.0,0.0113741]
[1769520815129,0.01230523,87927.0,87918.0,0.03396493]
[1769520815266,0.01230523,87927.0,87918.0,0.0225907]
[1769520815638,0.01230523,87927.0,87919.0,0.04425844]
[1769520818955,0.2371103,87931.0,87919.0,0.04425844]
[1769520819099,0.05686323,87930.0,87919.0,0.04425844]
[1769520820639,0.05686323,87930.0,87919.0,0.05563254]
[1769520820840,0.05686323,87930.0,87920.0,0.01137397]
[1769520821055,0.05686323,87930.0,87921.0,0.0160751]
[1769520824976,0.05686323,87930.0,87921.0,0.02744894]
[1769520825194,0.05686323,87930.0,87923.0,0.01137358]
[1769520825454,0.05686323,87930.0,87924.0,0.01137345]
[1769520825656,0.05686323,87930.0,87925.0,0.01137332]
[1769520825849,0.05686323,87930.0,87926.0,0.0113732]
[1769520826106,0.05686323,87930.0,87925.0,0.01137332]
[1769520826326,0.05686323,87930.0,87928.0,0.0225907]
[1769520826757,0.05686323,87930.0,87927.0,0.04425844]
[1769520827794,0.05586323,87930.0,87927.0,0.04425844]
[1769520831874,0.0001471,87939.0,87928.0,0.09082801]
[1769520832031,0.0001471,87939.0,87929.0,0.28813522]
[1769520832232,0.05685894,87937.0,87929.0,0.28813522]
[1769520832460,0.05685894,87937.0,87930.0,0.01137268]
[1769520832648,0.05685894,87937.0,87929.0,0.29950803]
[1769520833086,0.05685894,87937.0,87929.0,0.35637189]
[1769520833260,0.05685894,87937.0,87930.0,0.04425844]
[1769520833841,0.05685894,87937.0,87930.0,0.05563112]
[1769520834238,0.05685894,87937.0,87930.0,0.04425844]
[1769520835607,0.05685894,87937.0,87929.0,0.27206012]
[1769520838234,0.05685894,87937.0,87925.0,0.01137332]
[1769520838924,0.05685894,87937.0,87924.0,0.01137345]
[1769520839138,0.05685894,87937.0,87925.0,0.01137332]
[1769520840797,0.05685894,87937.0,87925.0,0.06823989]
[1769520841007,0.05685894,87937.0,87925.0,0.01137332]
[1769520841233,0.03274828,87937.0,87925.0,0.01137332]
[1769520841381,0.03274828,87937.0,87925.0,0.0682399]
[1769520841585,0.03274828,87937.0,87926.0,0.06823915]
[1769520841785,0.03274828,87937.0,87927.0,0.01137307]
[1769520842214,0.03274828,87937.0,87926.0,0.06823901]
[1769520842619,0.03274828,87937.0,87927.0,0.01137307]
[1769520842819,0.03274828,87937.0,87926.0,0.06823901]
[1769520843201,0.03274828,87937.0,87927.0,0.01137307]
[1769520843566,0.03274828,87937.0,87926.0,0.06823901]
[1769520843771,0.03274828,87937.0,87926.0,0.06823917]
[1769520843978,0.03274828,87937.0,87926.0,0.0113732]
[1769520844190,0.03274828,87937.0,87927.0,0.28343319]
[1769520844418,0.03274828,87937.0,87927.0,0.27206012]
[1769520851932,0.03274828,87937.0,87927.0,0.28343319]
[1769520852360,0.03274828,87937.0,87928.0,0.01137294]
[1769520852568,0.02436188,87942.0,87930.0,0.27206012]
[1769520852778,0.05685889,87937.0,87930.0,0.27206012]
[1769520852988,0.05685889,87937.0,87928.0,0.01137294]
[1769520853205,0.05685889,87937.0,87928.0,0.06823764]
[1769520853408,0.05685889,87937.0,87928.0,0.01137294]
[1769520853612,0.05685889,87937.0,87927.0,0.34029824]
[1769520853820,0.05685889,87937.0,87928.0,0.01137294]
[1769520854241,0.05685889,87937.0,87929.0,0.01137281]
[1769520854463,0.05685889,87937.0,87927.0,0.34029842]
[1769520854877,0.05685889,87937.0,87928.0,0.01137294]
[1769520855083,0.05685889,87937.0,87927.0,0.28343319]
[1769520855304,0.05685889,87937.0,87927.0,0.27206012]
[1769520857000,0.05685889,87937.0,87927.0,0.28343319]
[1769520858056,0.05685889,87937.0,87928.0,0.06823759]
[1769520858236,0.05685889,87937.0,87927.0,0.34029822]
[1769520858436,0.05685889,87937.0,87928.0,0.01137294]
[1769520859155,0.05685889,87937.0,87929.0,0.01137281]
[1769520859387,0.05685889,87937.0,87928.0,0.01137294]
[1769520859590,0.05685889,87937.0,87928.0,0.06823761]
[1769520859796,0.05685889,87937.0,87929.0,0.01137281]
[1769520859939,0.05685889,87937.0,87928.0,0.06823761]
[1769520860125,0.05685889,87937.0,87929.0,0.01137281]
[1769520860326,0.05685889,87937.0,87927.0,0.27206012]
[1769520861427,0.05685889,87937.0,87927.0,0.28343319]
[1769520861858,0.05685889,87937.0,87927.0,0.27206012]
[1769520862469,0.05685889,87937.0,87927.0,0.28343319]
[1769520862670,0.05685889,87937.0,87927.0,0.01137307]
[1769520862908,0.05685889,87937.0,87926.0,0.06823894]
[1769520863152,0.05685889,87937.0,87927.0,0.06823829]
[1769520863315,0.05685889,87937.0,87927.0,0.34029841]
[1769520863518,0.05685889,87937.0,87928.0,0.01137294]
[1769520865731,0.05685889,87937.0,87931.0,0.01137255]
[1769520865968,0.05685889,87937.0,87931.0,0.06823521]
[1769520866183,0.05685889,87937.0,87932.0,0.01137242]
[1769520866393,0.0005471,87948.0,87934.0,0.46751861]
[1769520866625,0.1136345,87947.0,87934.0,0.46751861]
[1769520866837,0.0568532,87946.0,87938.0,0.27206012]
[1769520868107,0.0568532,87946.0,87932.0,0.02406144]
[1769520868531,0.0568532,87946.0,87932.0,0.03543386]
[1769520868743,0.0568532,87946.0,87933.0,0.01137229]
[1769520869186,0.0568532,87946.0,87936.0,0.0113719]
[1769520869439,0.0568532,87946.0,87936.0,0.06823141]
[1769520869648,0.0568532,87946.0,87937.0,0.01137177]
[1769520870074,0.0568532,87946.0,87938.0,0.01137164]
[1769520870504,0.0568532,87946.0,87938.0,0.06822978]
[1769520870750,0.0568532,87946.0,87939.0,0.01137151]
[1769520870962,0.0568532,87946.0,87938.0,0.01137164]
[1769520872036,0.0568532,87946.0,87936.0,0.28343202]
[1769520872461,0.0568532,87946.0,87936.0,0.27206012]
[1769520874081,0.0568532,87946.0,87936.0,0.28343202]
[1769520874293,0.0568532,87946.0,87937.0,0.01137177]
[1769520874466,0.0568532,87946.0,87938.0,0.47889025]
[1769520874680,0.0568532,87946.0,87939.0,0.01137151]
[1769520874881,0.0568532,87946.0,87938.0,0.53574818]
[1769520875083,0.0568532,87946.0,87939.0,0.03543295]
[1769520875282,0.0568532,87946.0,87940.0,0.46751861]
[1769520877110,0.0568532,87946.0,87940.0,0.47888999]
[1769520877316,0.0568532,87946.0,87940.0,0.46751861]
[1769520877744,0.0568532,87946.0,87940.0,0.47888999]
[1769520877983,0.0568532,87946.0,87940.0,0.53574692]
[1769520878193,0.0568532,87946.0,87941.0,0.01137126]
[1769520878637,0.0568532,87946.0,87942.0,0.01137113]
[1769520878886,0.0568532,87946.0,87943.0,0.011371]
[1769520879113,0.0568532,87946.0,87943.0,0.068226]
[1769520879342,0.0568532,87946.0,87943.0,0.011371]
[1769520879991,0.0568532,87946.0,87943.0,0.06822569]
[1769520880237,0.0568532,87946.0,87940.0,0.06822827]
[1769520880459,0.0568532,87946.0,87942.0,0.01137113]
[1769520880665,0.0568532,87946.0,87943.0,0.011371]
[1769520881067,0.0568532,87946.0,87943.0,0.011071]
[1769520881270,0.0568532,87946.0,87942.0,0.06822657]
[1769520881382,0.0005471,87948.0,87944.0,0.01137087]
[1769520881595,0.0001471,87956.0,87945.0,0.49594593]
[1769520881817,0.05684745,87955.0,87946.0,0.27206012]
[1769520882455,0.05684745,87955.0,87946.0,0.28343073]
[1769520882868,0.05684745,87955.0,87950.0,0.05685013]
[1769520883075,0.05684745,87955.0,87951.0,0.47888857]
[1769520883312,0.0001471,87956.0,87952.0,0.51079557]
[1769520883752,0.0001471,87956.0,87952.0,0.04327696]
[1769520885022,0.0001471,87956.0,87954.0,0.05684753]
[1769520885647,0.0001471,87956.0,87953.0,0.06821817]
[1769520885860,0.0001471,87956.0,87954.0,0.01705658]
[1769520887156,0.0001471,87956.0,87954.0,0.07390429]
[1769520887357,0.0001471,87956.0,87954.0,0.01705658]
[1769520889524,0.02452129,87969.0,87954.0,0.01705658]
[1769520889525,0.0004,87989.0,87960.0,0.0113688]
[1769520889725,0.0004,87989.0,87950.0,0.1]
[1769520889726,0.47187576,87969.0,87953.0,0.0113697]
[1769520889957,0.05683547,87973.0,87952.0,0.01136983]
[1769520889958,0.01,87960.0,87952.0,0.01136983]
[1769520890166,0.01,87960.0,87950.0,0.27182434]
[1769520890374,0.03452129,87960.0,87951.0,0.0374158]
[1769520890577,0.03452129,87960.0,87951.0,0.04878576]
[1769520891415,0.03452129,87960.0,87951.0,0.0374158]
[1769520891622,0.03452129,87960.0,87952.0,0.01136983]
[1769520891819,0.02452129,87960.0,87953.0,0.0113697]
[1769520892021,0.47187576,87963.0,87954.0,0.02291774]
[1769520893014,0.47187576,87963.0,87955.0,0.01136945]
[1769520893790,0.02452129,87965.0,87956.0,0.01136932]
[1769520894329,0.02452129,87965.0,87957.0,0.01136919]
[1769520894537,0.02452129,87965.0,87956.0,0.06821571]
[1769520894538,0.02452129,87965.0,87956.0,0.01136932]
[1769520894742,0.02452129,87965.0,87956.0,0.04878512]
[1769520894978,0.02452129,87965.0,87956.0,0.0374158]
[1769520898099,0.02452129,87965.0,87952.0,0.01136983]
[1769520900423,0.47437718,87965.0,87951.0,0.01136996]
[1769520900589,0.47437718,87965.0,87951.0,0.06821978]
[1769520900835,0.47437718,87965.0,87952.0,0.05684892]
[1769520901022,0.47437718,87965.0,87952.0,0.01136983]
[1769520901266,0.47437718,87965.0,87953.0,0.0113697]
[1769520901775,0.24103446,87965.0,87954.0,0.01136957]
[1769520901980,0.24103446,87965.0,87954.0,0.06821716]
[1769520902174,0.24103446,87965.0,87952.0,0.01136983]
[1769520902354,0.24103446,87965.0,87951.0,0.02330826]
[1769520902553,0.01653522,87971.0,87950.0,0.27182434]
[1769520902554,0.46176496,87963.0,87950.0,0.27182434]
[1769520902912,0.44985589,87955.0,87942.0,0.01137113]
[1769520903123,0.44985589,87955.0,87944.0,0.01137087]
[1769520903478,0.44985589,87955.0,87945.0,0.01137074]
[1769520903658,0.44985589,87955.0,87944.0,0.01137087]
[1769520904073,0.44985589,87955.0,87945.0,0.01137074]
[1769520904267,0.05683547,87956.0,87946.0,0.01137061]
[1769520905277,0.05683547,87956.0,87947.0,0.01137048]
[1769520905671,0.05683547,87956.0,87948.0,0.05685176]
[1769520905868,0.05683547,87956.0,87949.0,0.01137022]
[1769520906089,0.05683547,87956.0,87950.0,0.01137009]
[1769520906303,0.05683547,87956.0,87949.0,0.01137022]
[1769520906957,0.05683547,87956.0,87948.0,0.068222]
[1769520907174,0.05683547,87956.0,87949.0,0.01137022]
[1769520907866,0.05683547,87956.0,87948.0,0.01137035]
[1769520908097,0.05683547,87956.0,87944.0,0.01137087]
[1769520908567,0.26349136,87957.0,87944.0,0.01137087]
[1769520908837,0.05685786,87956.0,87945.0,0.01137074]
[1769520909053,0.05685786,87956.0,87944.0,0.01137087]
[1769520909256,0.05685786,87956.0,87943.0,0.03467926]
[1769520909668,0.05685786,87956.0,87944.0,0.01137087]
[1769520910671,0.05685786,87956.0,87943.0,0.03467926]
[1769520911650,0.05685786,87956.0,87943.0,0.09153426]
[1769520911847,0.05685786,87956.0,87944.0,0.01137087]
[1769520912640,0.05685786,87956.0,87944.0,0.06822517]
[1769520913300,0.05685786,87956.0,87946.0,0.27182434]
[1769520914519,0.05685786,87956.0,87944.0,0.01137087]
[1769520914909,0.05685786,87956.0,87943.0,0.09153403]
[1769520915088,0.05685786,87956.0,87944.0,0.06822499]
[1769520915295,0.05685786,87956.0,87945.0,0.01137074]
[1769520915501,0.05685786,87956.0,87946.0,0.27182434]
[1769520916404,0.05685786,87956.0,87946.0,0.28319495]
[1769520916610,0.05685786,87956.0,87949.0,0.01137022]
[1769520916783,0.05685786,87956.0,87950.0,0.01137009]
[1769520916981,0.05685786,87956.0,87951.0,0.01136996]
[1769520917415,0.05685786,87956.0,87951.0,0.06821978]
[1769520917587,0.05685786,87956.0,87950.0,0.06822051]
[1769520917784,0.05685786,87956.0,87952.0,0.01136983]
[1769520918040,0.05685786,87956.0,87953.0,0.0113697]
[1769520918536,0.05685786,87956.0,87952.0,0.06821862]
[1769520918773,0.05685786,87956.0,87953.0,0.0113697]
[1769520918974,0.05685786,87956.0,87951.0,0.06821931]
[1769520918975,0.05685786,87956.0,87951.0,0.01136996]
[1769520919389,0.05685786,87956.0,87950.0,0.01137009]
[1769520919390,0.05685786,87956.0,87950.0,0.06822024]
[1769520919621,0.05685786,87956.0,87950.0,0.01137009]
[1769520920212,0.05685786,87956.0,87951.0,0.01136996]
[1769520921002,0.05669581,87956.0,87951.0,0.01136996]
[1769520921249,0.05637169,87956.0,87951.0,0.01136996]
[1769520921476,0.05637169,87956.0,87948.0,0.06822173]
[1769520921703,0.05637169,87956.0,87949.0,0.06822119]
[1769520922368,0.05637169,87956.0,87950.0,0.06822057]
[1769520922603,0.05637169,87956.0,87951.0,0.01136996]
[1769520922839,0.05637169,87956.0,87951.0,0.04828635]
[1769520923078,0.05637169,87956.0,87952.0,0.01136983]
[1769520923299,0.05637169,87956.0,87953.0,0.04906614]
[1769520924179,0.05637169,87956.0,87953.0,0.06043584]
[1769520924379,0.05637169,87956.0,87953.0,0.04906614]
[1769520924818,0.0001276,87971.0,87957.0,0.01136919]
[1769520925021,0.0001276,87971.0,87958.0,0.07317201]
[1769520925226,0.05683893,87967.0,87960.0,0.27182434]
[1769520925452,0.05683893,87967.0,87959.0,0.06821317]
[1769520925688,0.05683893,87967.0,87959.0,0.01136893]
[1769520925912,0.05683893,87967.0,87958.0,0.07317201]
[1769520926121,0.05683893,87967.0,87959.0,0.04906614]
[1769520926947,0.05651473,87967.0,87959.0,0.04906614]
[1769520928610,0.05635256,87967.0,87959.0,0.04906614]
[1769520930359,0.0004,87975.0,87959.0,0.04906614]
[1769520930566,0.0568395,87967.0,87960.0,0.27182434]
[1769520930750,0.0568395,87967.0,87961.0,0.0112674]
[1769520930751,0.05651503,87967.0,87961.0,0.0112674]
[1769520933361,0.05651503,87967.0,87963.0,0.44950108]
[1769520933567,0.05651503,87967.0,87964.0,0.05278471]
[1769520934186,0.05651503,87967.0,87961.0,0.07947922]
[1769520934631,0.05651503,87967.0,87961.0,0.0112674]
[1769520934864,0.05651503,87967.0,87962.0,0.04906614]
[1769520938122,0.05651503,87967.0,87957.0,0.27182434]
[1769520938749,0.05651503,87967.0,87957.0,0.28319353]
[1769520938958,0.05651503,87967.0,87958.0,0.01136906]
[1769520939227,0.05651503,87967.0,87957.0,0.28319353]
[1769520939439,0.05651503,87967.0,87958.0,0.01136906]
[1769520939646,0.05651503,87967.0,87959.0,0.01136893]
[1769520939862,0.05651503,87967.0,87960.0,0.03]
[1769520940077,0.05651503,87967.0,87960.0,0.0413688]
[1769520940520,0.05651503,87967.0,87962.0,0.04136854]
[1769520940730,0.05651503,87967.0,87964.0,0.03]
[1769520941799,0.05651503,87967.0,87962.0,0.06821119]
[1769520941800,0.05651503,87967.0,87965.0,0.03]
[1769520942871,0.05651503,87967.0,87964.0,0.03]
[1769520943917,0.05651503,87967.0,87965.0,0.03]
[1769520944761,0.05611503,87967.0,87965.0,0.03]
[1769520945052,0.05611503,87967.0,87966.0,0.03]
[1769520946053,0.05611503,87967.0,87964.0,0.03]
[1769520946329,0.05611503,87967.0,87966.0,0.03]
[1769520946979,0.05611503,87967.0,87966.0,0.06479144]
[1769520948133,0.0004,87975.0,87966.0,0.03]
[1769520948341,0.0004,87975.0,87965.0,0.01136815]
[1769520948342,0.0004,87975.0,87968.0,0.03]
[1769520948570,0.05723472,87975.0,87968.0,0.03]
[1769520949554,0.05723472,87975.0,87972.0,0.03]
[1769520949962,0.05723472,87975.0,87967.0,0.06820715]
[1769520949963,0.05723472,87975.0,87974.0,0.0625423]
[1769520950339,0.05723472,87975.0,87974.0,0.03]
[1769520950989,0.05723472,87975.0,87970.0,0.03]
[1769520951194,0.05723472,87975.0,87972.0,0.0625423]
[1769520951410,0.0001661,87981.0,87978.0,0.03]
[1769520951618,0.0001661,87981.0,87979.0,0.0325423]
[1769520951845,0.0001661,87981.0,87980.0,0.06029334]
[1769520952466,0.05722928,87983.0,87980.0,0.06029334]
[1769520952678,0.05722928,87983.0,87982.0,0.03]
[1769520953298,0.0004,87984.0,87983.0,0.03029334]
[1769520953500,0.0004,87984.0,87983.0,0.06029334]
[1769520954988,0.05682395,87991.0,87983.0,0.03]
[1769520955213,0.05682395,87991.0,87985.0,0.03]
[1769520955849,0.01875261,87990.0,87985.0,0.03]
[1769520956252,0.01875261,87990.0,87982.0,0.0280444]
[1769520956253,0.01875261,87990.0,87986.0,0.03]
[1769520957301,0.05682395,87991.0,87987.0,0.03]
[1769520957302,0.03039859,87991.0,87987.0,0.03]
[1769520958335,0.03039859,87991.0,87980.0,0.2717364]
[1769520958336,0.01,87987.0,87980.0,0.2717364]
[1769520958538,0.01,87987.0,87977.0,0.29511437]
[1769520958876,0.03039859,87991.0,87977.0,0.29511437]
[1769520959081,0.48017418,87990.0,87972.0,0.01136725]
[1769520959291,0.50372911,87990.0,87974.0,0.01136699]
[1769520959926,0.50372911,87990.0,87975.0,0.01136686]
[1769520960340,0.50372911,87990.0,87974.0,0.06820174]
[1769520960555,0.50372911,87990.0,87975.0,0.01136686]
[1769520960780,0.50372911,87990.0,87974.0,0.01136699]
[1769520960983,0.50372911,87990.0,87975.0,0.01136686]
[1769520961634,0.50372911,87990.0,87974.0,0.58857072]
[1769520961866,0.50372911,87990.0,87975.0,0.01136686]
[1769520962311,0.50372911,87990.0,87974.0,0.52036878]
[1769520963191,0.50372911,87990.0,87974.0,0.53173577]
[1769520964443,0.34109532,87990.0,87974.0,0.52036878]
[1769520964857,0.34109532,87990.0,87974.0,0.53173577]
[1769520965690,0.34109532,87990.0,87976.0,0.01136673]
[1769520965904,0.34109532,87990.0,87980.0,0.2717364]